Cogmind - Beta 15 *** ADVENTURER MODE // 2025.07.31 @ 12:57:42 Player: Gentle Jesus Result: Self-destructed Performance ------------- Evolutions (0) 0 Regions Visited (4) 800 Robots Destroyed (19) 95 Value Destroyed (372) 372 Prototype IDs (23) 460 Alien Tech Used (0) 0 Bonus (300) 300 TOTAL SCORE: 2027 Bonus ------- Aligned with FarCom 300 Cogmind --------- Core Integrity 25/250 Matter 300/300 Energy 100/100 System Corruption 0% Temperature Cool (12) Movement Core (250) Ox4 Location -9/Mines Parts ------- > --- POWER (1) -------- (None) > --- PROPULSION (2) --- (None) > --- UTILITY (2) ------ Medium Storage Unit Targeting Computer > --- WEAPON (2) ------- Battle Cannon > --- INVENTORY (10) --- Light Ion Engine Small Storage Unit Lightpack 2.0 High-capacity Matter Pod (200) Improved Terrain Scanner Propulsion Shielding Propulsion Shielding Mining Laser Peak State ------------ > --- POWER ------------ Ion Engine > --- PROPULSION ------- Light Treads > --- UTILITY ---------- Medium Storage Unit Seismic Detector > --- WEAPON ----------- Small Laser Battle Cannon > --- INVENTORY -------- Light Ion Engine Small Storage Unit Improved Terrain Scanner Propulsion Shielding Propulsion Shielding Rocket Launcher Mining Laser [Rating: 8] Favorites ----------- Power Ion Engine Engine Ion Engine Propulsion Light Treads Treads Light Treads Utility Medium Storage Unit Device Seismic Detector Storage Medium Storage Unit Processor Targeting Computer Weapon Battle Cannon Energy Gun Small Laser Ballistic Cannon Battle Cannon Launcher Rocket Launcher Build | -11 -10 -10 -10 -9 ------- Run | Yrd Mat Min Exi Min Slots Evolved . | . . . . . Power . | . . . . . Propulsion . | . . . . . Utility . | . . . . . Weapon . | . . . . . Parts Attached 12 | 7 1 3 . 1 Power 2 | 1 . 1 . . Engine 2 | 1 . 1 . . Core . | . . . . . Reactor . | . . . . . Propulsion 2 | 2 . . . . Treads 2 | 2 . . . . Leg . | . . . . . Wheel . | . . . . . Hover . | . . . . . Flight . | . . . . . Utility 4 | 2 1 . . 1 Device 1 | 1 . . . . Storage 2 | 1 1 . . . Processor 1 | . . . . 1 Hackware . | . . . . . Protection . | . . . . . Artifact . | . . . . . Weapon 4 | 2 . 2 . . Energy Gun 2 | 2 . . . . Energy Cannon . | . . . . . Ballistic Gun . | . . . . . Ballistic Cannon 1 | . . 1 . . Launcher 1 | . . 1 . . Special Weapon . | . . . . . Impact Weapon . | . . . . . Slashing Weapon . | . . . . . Piercing Weapon . | . . . . . Special Melee Weapon . | . . . . . Unidentified Prototypes . | . . . . . Parts Lost 7 | . . 6 . 1 Power 2 | . . 1 . 1 Propulsion 2 | . . 2 . . Utility 1 | . . 1 . . Weapon 2 | . . 2 . . Highest Loss Streak 3 | . . 3 . 1 To Critical Strikes . | . . . . . Average Backups 6 | . 1 6 7 8 Power . | . . . 1 1 Propulsion . | . . . . . Utility 4 | . 1 4 4 6 Weapon 1 | . . 1 1 1 Tool/Special . | . . . . . Unused Backups 7 | . . . . 7 Power 1 | . . . . 1 Propulsion . | . . . . . Utility 5 | . . . . 5 Weapon 1 | . . . . 1 Tool/Special . | . . . . . Average Slot Usage (%) 57 | . 100 65 42 56 Engine 13 | . 14 11 14 14 Treads 6 | . 28 12 . . Device 3 | . 14 8 . . Storage 14 | . 14 14 14 14 Processor 2 | . . . . 13 Energy Gun 6 | . 28 11 . . Ballistic Cannon 10 | . . 6 14 14 Peak Build Rating 8 | 7 7 8 7 8 Average Rating 6 | 4 7 5 6 7 On Entrance 5 | . 7 7 4 7 Naked Turns . | . . . . . Heaviest Build 20 | 12 17 20 18 18 Greatest Support 40 | 40 40 40 3 3 Greatest Overweight (x) 5 | . . 5 5 5 Average Overweight (x) 2 | . . 1 5 5 Largest Inventory Capacity 10 | 8 10 10 10 10 Average Capacity 9 | 7 8 10 10 10 Most Carried 10 | 1 5 7 10 10 Average Carried 7 | . 2 6 9 10 Final Capacity 10 | 8 10 10 10 10 Final Carried 10 | 1 5 7 10 10 Class Distribution -------------------- 100% | Mutant Dominant Class ---------------- Mutant | -10/Materials Mutant | -10/Mines Mutant | -10/Exiles Mutant | -9/Mines Resources | -11 -10 -10 -10 -9 ----------- Run | Yrd Mat Min Exi Min Matter Collected 376 | 253 27 86 . 10 Remotely . | . . . . . Salvage Created 453 | 37 196 220 . . Parts 31 | 4 13 14 . . Haulers Intercepted 1 | . 1 . . . Recyclers Shooed 1 | . 1 . . . Parts Field Recycled . | . . . . . Retrieved Matter . | . . . . . Parts Self-Destructed . | . . . . . Prevented . | . . . . . Kills | -11 -10 -10 -10 -9 ------- Run | Yrd Mat Min Exi Min Combat Hostiles Destroyed 15 | . 8 7 . . Guns 13 | . 8 5 . . Cannons 2 | . . 2 . . Classes Destroyed 7 | 1 2 4 . . Worker 1 | . . 1 . . Tunneler 3 | 2 . 1 . . Hauler 1 | . 1 . . . Swarmer 8 | . 8 . . . Grunt 4 | . . 4 . . Demolisher 2 | . . 2 . . Assembled 1 | . . 1 . . Best Kill Streak 5 | 2 5 4 . . Combat Bots Only 5 | . 5 3 . . Max Kills in Single Turn 2 | 1 2 1 . . Gunslinging 1 | . 1 . . . Exploded . | . . . . . Melee . | . . . . . Uniques/NPCs Destroyed . | . . . . . Combat | -11 -10 -10 -10 -9 -------- Run | Yrd Mat Min Exi Min Hostile Shots Fired 106 | . 28 63 . 15 Missed 32 | . 10 18 . 4 Hits 74 | . 18 45 . 11 Projectile 74 | . 18 45 . 11 AOE 10 | . . 10 . . Damage Taken 882 | . 117 672 . 93 Core 225 | . 34 149 . 42 Absorbed by Shields . | . . . . . Ignored by Resistances 262 | . 36 196 . 30 Core Remaining (%) 100 | 100 . . . . Volleys Fired 47 | 2 11 34 . . Largest 2 | 2 2 2 . . Hottest 80 | 80 80 80 . . Shots Fired 73 | 4 22 47 . . Gun 60 | 4 22 34 . . Cannon 12 | . . 12 . . Launcher 1 | . . 1 . . Special . | . . . . . Kinetic 12 | . . 12 . . Thermal 40 | 2 11 27 . . Explosive 1 | . . 1 . . Electromagnetic 20 | 2 11 7 . . Robot Hit Streak 8 | 3 5 8 . . Robot Miss Streak 2 | . 2 2 . . Penetration Max . | . . . . . Secondary Targets 3 | . 2 1 . . Max Gunslinging Chain 1 | . 1 1 . . Shots Hit Robots 50 | 3 14 33 . . Core Hits 31 | 2 10 19 . . Critical Kills . | . . . . . Critical Parts Destroyed . | . . . . . Critical Strikes . | . . . . . Melee Attacks . | . . . . . Impact . | . . . . . Slashing . | . . . . . Piercing . | . . . . . Sneak Attacks . | . . . . . Combat Hostiles . | . . . . . Follow-up Attacks . | . . . . . Damage Inflicted 704 | 36 170 498 . . Guns 487 | 36 170 281 . . Cannons 164 | . . 164 . . Explosions 48 | . . 48 . . Melee . | . . . . . Ramming 5 | . . 5 . . Kinetic 164 | . . 164 . . Thermal 326 | 24 88 214 . . Explosive 48 | . . 48 . . Electromagnetic 161 | 12 82 67 . . Impact . | . . . . . Slashing . | . . . . . Piercing . | . . . . . Highest Corruption . | . . . . . Average Corruption . | . . . . . Corruption Purged . | . . . . . Corruption Blocked . | . . . . . Overload Shots . | . . . . . Overflow Damage 22 | . . 22 . . Projectiles 22 | . . 22 . . Explosions . | . . . . . Melee . | . . . . . Knockbacks 3 | . . 3 . . Impact . | . . . . . Kinetic 3 | . . 3 . . Secondary . | . . . . . Self-Inflicted Damage 25 | . . 25 . . Shots 1 | . . 1 . . Rammed 1 | . 1 . . . Targets Rammed 2 | . 1 1 . . Kicked . | . . . . . Crushed 1 | . . 1 . . Highest Temperature 120 | 18 72 120 . . Average Temperature 30 | 12 26 34 . . Received Heat Transfer 380 | . . 314 . 66 Siege Activations . | . . . . . Martial Activations . | . . . . . Shielding Activations . | . . . . . Robots Disrupted . | . . . . . Combat Hostiles . | . . . . . Robots Corrupted . | . . . . . Combat Hostiles . | . . . . . Parts Fried . | . . . . . Impact Corruptions . | . . . . . Robots Melted . | . . . . . Combat Hostiles . | . . . . . Parts Melted 1 | 1 . . . . Heat Transferred 725 | 50 200 475 . . Parts Sabotaged . | . . . . . Parts Stolen . | . . . . . Parts Stripped . | . . . . . Power Chain Reactions . | . . . . . Alert | -11 -10 -10 -10 -9 ------- Run | Yrd Mat Min Exi Min Maximum Alert Level . | . . . . . Low Security (%) 100 | 100 100 100 . 100 Level 1 . | . . . . . Level 2 . | . . . . . Level 3 . | . . . . . Level 4 . | . . . . . Level 5 . | . . . . . High Security . | . . . . . Max Security . | . . . . . Peak Influence 105 | 5 105 40 . . Initial . | . . . . . Average 17 | . 58 7 . . Influence Increases 381 | 10 202 169 . . Destroy 0b10 Robot/C 280 | . 160 120 . . Destroy 0b10 Robot/NC 25 | 10 5 10 . . Destroy Leader 52 | . 22 30 . . Destroy Structure 9 | . . 9 . . Lose Combat Pursuer 15 | . 15 . . . Influence Decreases 381 | 10 200 171 . . Entered New Map 2 | . . 2 . . Time Decay 345 | 10 200 135 . . Lost Part 34 | . . 34 . . Squads Dispatched . | . . . . . Investigation . | . . . . . Extermination . | . . . . . Reinforcement . | . . . . . Assault . | . . . . . Garrison . | . . . . . Intercept . | . . . . . Searches Triggered . | . . . . . Construction Impeded . | . . . . . Haulers Reinforced . | . . . . . Active Scanning Responses . | . . . . . Cargo Convoy Interrupts . | . . . . . Stealth | -11 -10 -10 -10 -9 --------- Run | Yrd Mat Min Exi Min Distress Signals . | . . . . . Communications Jammed . | . . . . . Distress Signals . | . . . . . Times Spotted 24 | . 11 8 . 5 Peak Tracking Total 9 | . 6 9 . 4 Tactical Retreats 1 | . 1 . . . Traps | -11 -10 -10 -10 -9 ------- Run | Yrd Mat Min Exi Min Traps Triggered . | . . . . . Indirectly . | . . . . . Trap Hack Attempts . | . . . . . Triggered . | . . . . . Disarmed . | . . . . . Reprogrammed . | . . . . . Reused . | . . . . . Traps Extracted . | . . . . . Installed . | . . . . . Triggered . | . . . . . Machines | -11 -10 -10 -10 -9 ---------- Run | Yrd Mat Min Exi Min Machines Disabled . | . . . . . Max in Single Turn . | . . . . . Machines Repaired . | . . . . . Machines Dismantled . | . . . . . Machines Sabotaged . | . . . . . Overloaded Fab Kills . | . . . . . Hacking | -11 -10 -10 -10 -9 --------- Run | Yrd Mat Min Exi Min Machines Accessed 3 | . 2 . 1 . Terminals 2 | . 2 . . . Fabricators . | . . . . . Repair Stations . | . . . . . Recycling Units . | . . . . . Scanalyzers . | . . . . . Garrison Access . | . . . . . Total Hacks 3 | . 2 . 1 . Successful 1 | . . . 1 . Failed 2 | . 2 . . . Catastrophic 2 | . 2 . . . Database Lockouts . | . . . . . Manual 3 | . 2 . 1 . Terminals 2 | . 2 . . . Fabricators . | . . . . . Repair Stations . | . . . . . Recycling Units . | . . . . . Scanalyzers . | . . . . . Garrison Access . | . . . . . Terminal Hacks 1 | . . . 1 . Proto ID Catalog 1 | . . . 1 . Fabricator Hacks . | . . . . . Repair Station Hacks . | . . . . . Recycling Unit Hacks . | . . . . . Scanalyzer . | . . . . . Garrison Access Hacks . | . . . . . Unauthorized Hacks . | . . . . . Terminals . | . . . . . Fabricators . | . . . . . Repair Stations . | . . . . . Recycling Units . | . . . . . Scanalyzers . | . . . . . Garrison Access . | . . . . . Data Cores Recovered . | . . . . . Used . | . . . . . Hacking Detections 2 | . 2 . . . Full Trace Events . | . . . . . Feedback Events . | . . . . . Feedback Blocked . | . . . . . Robot Schematics Acquired . | . . . . . Robots Built . | . . . . . Authchips . | . . . . . Time . | . . . . . Total Robot Build Rating . | . . . . . Part Schematics Acquired . | . . . . . Parts Built . | . . . . . Authchips . | . . . . . Time . | . . . . . Total Part Build Rating . | . . . . . Parts Repaired . | . . . . . Time . | . . . . . Parts Recycled . | . . . . . Recycled Matter . | . . . . . Retrieved Matter . | . . . . . Retrieved Components . | . . . . . Parts Scanalyzed . | . . . . . Part Schematics Acquired . | . . . . . Parts Damaged . | . . . . . Bothacking | -11 -10 -10 -10 -9 ------------ Run | Yrd Mat Min Exi Min Used RIF Installer . | . . . . . Robots Hacked . | . . . . . Non-combat . | . . . . . Combat . | . . . . . Robot Hacks Applied . | . . . . . Relay Couplers Released . | . . . . . Fabnet Peak Effective % . | . . . . . Robots Rewired . | . . . . . Allies Hacked . | . . . . . Hacks Repelled . | . . . . . Allies | -11 -10 -10 -10 -9 -------- Run | Yrd Mat Min Exi Min Total Allies . | . . . . . Largest Group . | . . . . . Highest-Rated Group . | . . . . . Highest-Rated Ally . | . . . . . Total Orders . | . . . . . Ally Attacks . | . . . . . Total Damage . | . . . . . Kills . | . . . . . Allies Corrupted . | . . . . . Allies Melted . | . . . . . Intel | -11 -10 -10 -10 -9 ------- Run | Yrd Mat Min Exi Min Active Infowar (turns) 785 | 22 404 359 . . Seismic 785 | 22 404 359 . . Robot Analysis Total . | . . . . . Derelict Logs Recovered . | . . . . . Drone Launches . | . . . . . Drone Recoveries . | . . . . . Exploration | -11 -10 -10 -10 -9 ------------- Run | Yrd Mat Min Exi Min Turns Passed 3053 | 117 404 614 1464 454 Spaces Moved 1103 | 65 229 259 488 62 Core 634 | 3 . 81 488 62 Treads 469 | 62 229 178 . . Legs . | . . . . . Wheels . | . . . . . Hover . | . . . . . Flight . | . . . . . Fastest Speed 50 | 50 160 160 300 300 Average Speed 239 | 154 160 203 300 300 Slowest Speed 300 | 160 160 300 300 300 Overloaded Moves . | . . . . . Propulsion Burnouts . | . . . . . Robots Hopped . | . . . . . Potential Cave-ins . | . . . . . Cave-ins Triggered . | . . . . . Exploration Rate (%) 37 | 5 34 39 88 22 Regions Visited 4 Branch Regions 3 Pre-discovered Areas . | . . . . . Known Exits Taken . | . . . . . Unknown Exits Taken 4 | 1 1 1 1 . Scrap Searched 1 | . . . . 1 Spaces Dug . | . . . . . Terrain Destroyed 11 | . . 11 . . Melee . | . . . . . Projectile 3 | . . 3 . . AOE 8 | . . 8 . . Terrain Rammed . | . . . . . Walls Destroyed . | . . . . . Machines Disabled . | . . . . . Actions | -11 -10 -10 -10 -9 --------- Run | Yrd Mat Min Exi Min Total 1435 | 74 244 298 490 329 Wait 266 | . . . . 266 Move 1099 | 64 228 258 487 62 Hop . | . . . . . Pick Up 8 | 1 3 2 2 . Fast Attach 10 | 7 . 2 . 1 Attach . | . . . . . Detach . | . . . . . Swap 2 | . 1 1 . . Drop 1 | . . . 1 . Fire 47 | 2 11 34 . . Melee . | . . . . . Ram . | . . . . . Kick . | . . . . . Crush 2 | . 1 1 . . Escape Stasis . | . . . . . Rewire . | . . . . . Trap . | . . . . . Miscellaneous . | . . . . . Route ------- -11/Scrapyard -10/Materials -10/Mines -10/Exiles (discovered 2 exits: [*Min x2]) -9/Mines History --------- Turn | Location | Event 12 | -11/Scrapyard | Discovered new exit (range 15) 118 | -11/Scrapyard | Entered Materials 301 | -10/Materials | Discovered new exit (range 11) 309 | -10/Materials | Build established: Mutant 522 | -10/Materials | Entered Mines 761 | -10/Mines | Received a Rocket Launcher from a helpful Derelict 835 | -10/Mines | A weapon hastily lodged in a ceiling crevice suddenly fell to the ground 843 | -10/Mines | Assembled infested the area 873 | -10/Mines | Core integrity fell below 50% 918 | -10/Mines | Lost 3 parts (1n1u1w) 947 | -10/Mines | Met 8R-AWN 1118 | -10/Mines | Discovered new exit (range 5) 1136 | -10/Mines | Entered Exiles 1211 | -10/Exiles | Discovered new exit (range 15) 1247 | -10/Exiles | Welcomed by 8R-AWN 1304 | -10/Exiles | Met EX-HEX 1439 | -10/Exiles | Met EX-BIN 1496 | -10/Exiles | Aligned with FarCom system 1499 | -10/Exiles | Given EX-Vault access code 1589 | -10/Exiles | Opened EX-Vault 1616 | -10/Exiles | Found Lightpack 2.0 1680 | -10/Exiles | Warned to stay clear of 0b10 Research branches 1788 | -10/Exiles | Met EX-DEC 1891 | -10/Exiles | Visited The Gauntlet 2552 | -10/Exiles | Discovered new exit (range 12) 2600 | -10/Exiles | Left Exiles lab with Lightpack 2.0 2600 | -10/Exiles | Entered Mines 2740 | -9/Mines | Excavation squad dispatched 2740 | -9/Mines | A large section of the Mines collapsed 2990 | -9/Mines | Excavation squad dispatched 3050 | -9/Mines | Core integrity fell below 20% 3054 | -9/Mines | Self-destructed Last Messages --------------- U-05 Engineer lays Concrete. ALERT: Derelict activity in mines confirmed. Dispatching additional escorted excavation squad. U-05 Engineer lays Concrete. T-07 Excavator is excavating. U-05 Engineer lays Concrete. T-07 Excavator is excavating. U-05 Engineer lays Concrete. T-07 Excavator is excavating. U-05 Engineer lays Concrete. T-07 Excavator is excavating. U-05 Engineer lays Concrete. T-07 Excavator is excavating. U-05 Engineer lays Concrete. T-07 Excavator is excavating. as-77996 sneak attacks. T-07 Excavator knocked back. U-05 Engineer lays Concrete. Ion Engine destroyed. Map ----- +----------------------------------------------------+ | ??????# #???????????????????????? | | ???????# #???????????????????????? | | ???????# ##??????????????????????? | | ??????## ##?????????????????????? | | ??????# ##????????????????????? | | ?????## #######??????????????? | | ????## ## %[ ##?????????????? | | ???## #### [! #?????????????? | | ??## #??##### #######???????? | | ?## #??????## ? | | ?# ##???????# ? | | ?# #???###??# ######### #???? | | ?# ##?## ##?# #????????????? | | ?# ###??# #### ???????????? | | ?#" #????# #?## ??????????? | | ?# ###### #??## ?????????? | | ?# ## #????# #????????? | | ?# #????? #????????? | | ?## " ##????? ##????????? | | ??# #?????? #?????????? | | ??# " ##?????? #?????????? | | ??# k ;##??????? ##?????????? | | ??#" "##gt#??????? #??????????? | | ??# ## ##### t #??????????? | | ??### #### % g g % ????????? | | ??# ##" ## @ g t ????????? | | ??# " ### ##### #???????????? | | ??# ###?# #?????? ##???????????? | | ??# #??# #?????????#????????????? | | ??# #??# #??????????????????????? | | ??## ?? ??????????????????????? | | ???# ?? ??????????????????????? | | ???## #?? ??????????????????????? | | ?????###?? ?????????????????????? | | ?????????? ?????????????????????? | | ??????????# t ?????????????????????? | | ???????????# ?????????????????????? | | ???????????? ????????????????????? | | ???????????? ? ????????????????????? | | ???????????? ??????????????????????? | | ???????????? ??????????????????????? | | ???????????????????????????????????? | | ???????????????????????????????????? | | ???????????????????????????????????? | | ???????????????????????????????????? | | ???????????????????????????????????? | | ???????????????????????????????????? | | ???????????????????????????????????? | | ???????????????????????????????????? | | ???????????????????????????????????? | +----------------------------------------------------+ Best States ------------- Heat Dissipation 25 Energy Generation 10 Energy Capacity 250 Matter Stores 300 Matter Capacity 300 Sight Range 16 Terrain Scan Density 10 Resistance: KI 20 Resistance: TH 20 Resistance: EX 20 Resistance: EM 20 Resistance: I 20 Resistance: S 20 Resistance: P 20 Evasion (%) 40 Targeting Accuracy 5 Recoil Reduction 2 Offensive Hacking 10 Item Schematics ----------------- None Robot Schematics ------------------ None Fabricated ------------ Nothing Repaired ---------- Nothing Alien Tech Used ----------------- None Achievements -------------- None Challenges ------------ None Game ------ Seed TransmissionWarpMesh Manual? 0 Play Time 00:08:35 Cumulative 125.0 hours Start 2025.07.31 @ 12:49:42 End 2025.07.31 @ 12:57:42 Sessions 1 Manual Loads 0 Difficulty Adventurer Special Mode None Game No. 103 Rogue 0 Adventurer 103 Explorer 0 Win Type - Total 3 Types 3/0/0/0/0/0/0/0/0/0 Lore% 54 Gallery% 56 Achievement% 53 Wizard Run 0 Options --------- Layout 1 ASCII 0 Keyboard 0 Movement Arrows Keybinds 0 Fullscreen 1 Font 32/SmallcapsGlow Map View 50x40 Zoom Use 8% Tactical HUD 0 Map Filters NONE Filters NONE Steam 1 RUN: 3eb6c0e6-ff48-48e2-a4f6-955ff2c0ca49